Cogmind - Beta 15 @@@ ROGUE MODE // 2025.05.07 @ 09:37:52 Player: SnowyImp Result: Destroyed by G-34 Mercenary with Small Laser Performance ------------- Evolutions (1) 500 Regions Visited (3) 600 Robots Destroyed (24) 120 Value Destroyed (470) 470 Prototype IDs (0) 0 Alien Tech Used (0) 0 Bonus (0) 0 TOTAL SCORE: 1690 Bonus ------- None Cogmind --------- Core Integrity 0/400 Matter 223/300 Energy 99/100 System Corruption 0% Temperature Cool (6) Movement Core (250) Ox4 Location -9/Mines Parts ------- > --- POWER (1) -------- (None) > --- PROPULSION (2) --- (None) > --- UTILITY (4) ------ Medium Storage Unit Signal Interpreter > --- WEAPON (2) ------- Shotgun > --- INVENTORY (10) --- Flight Unit Flight Unit ECM Suite Peak State ------------ > --- POWER ------------ Improved Ion Engine > --- PROPULSION ------- Flight Unit Flight Unit > --- UTILITY ---------- Medium Storage Unit Signal Interpreter ECM Suite ECM Suite > --- WEAPON ----------- Flail > --- INVENTORY -------- ECM Suite [Rating: 10] Favorites ----------- Power Ion Engine Engine Ion Engine Propulsion Aluminum Leg Treads Light Treads Leg Aluminum Leg Flight Unit Flight Unit Utility Medium Storage Unit Device Sensor Array Storage Medium Storage Unit Processor Signal Interpreter Weapon Assault Rifle Ballistic Gun Assault Rifle Impact Weapon Flail Build | -11 -10 -9 -9 ------- Run | Yrd Mat Mat Min Slots Evolved 2 | . . 2 . Power . | . . . . Propulsion . | . . . . Utility 2 | . . 2 . Weapon . | . . . . Parts Attached 20 | 5 3 12 . Power 2 | 1 . 1 . Engine 2 | 1 . 1 . Core . | . . . . Reactor . | . . . . Propulsion 7 | 2 . 5 . Treads 2 | . . 2 . Leg 3 | 2 . 1 . Wheel . | . . . . Hover . | . . . . Flight 2 | . . 2 . Utility 5 | . 3 2 . Device 3 | . 2 1 . Storage 1 | . 1 . . Processor 1 | . . 1 . Hackware . | . . . . Protection . | . . . . Artifact . | . . . . Weapon 6 | 2 . 4 . Energy Gun . | . . . . Energy Cannon . | . . . . Ballistic Gun 5 | 2 . 3 . Ballistic Cannon . | . . . . Launcher . | . . . . Special Weapon . | . . . . Impact Weapon 1 | . . 1 . Slashing Weapon . | . . . . Piercing Weapon . | . . . . Special Melee Weapon . | . . . . Unidentified Prototypes . | . . . . Parts Lost 15 | . . 14 1 Power 2 | . . 2 . Propulsion 5 | . . 4 1 Utility 3 | . . 3 . Weapon 5 | . . 5 . Highest Loss Streak 4 | . . 4 1 To Critical Strikes 1 | . . 1 . Average Backups 2 | . 2 3 2 Power . | . . . . Propulsion . | . . 1 1 Utility 1 | . 2 1 1 Weapon . | . . . . Tool/Special . | . . . . Unused Backups 1 | . . . 1 Power . | . . . . Propulsion . | . . . . Utility 1 | . . . 1 Weapon . | . . . . Tool/Special . | . . . . Average Slot Usage (%) 76 | . 92 66 42 Engine 8 | . 14 5 . Treads 2 | . . 4 . Leg 16 | . 28 7 8 Flight 1 | . . 1 1 Device 7 | . 7 8 . Storage 12 | . 13 11 11 Processor 6 | . . 10 11 Ballistic Gun 18 | . 28 10 11 Impact Weapon 3 | . . 6 . Peak Build Rating 10 | 5 7 10 6 Average Rating 6 | 3 6 7 4 On Entrance 4 | . 5 7 5 Naked Turns . | . . . . Heaviest Build 23 | 8 19 23 13 Greatest Support 40 | 20 20 40 10 Greatest Overweight (x) 6 | . . 6 4 Average Overweight (x) . | . . . 1 Largest Inventory Capacity 10 | 5 10 10 10 Average Capacity 9 | 5 9 10 10 Most Carried 5 | 3 4 5 3 Average Carried 2 | . 2 3 2 Final Capacity 10 | 5 10 10 10 Final Carried 3 | . 3 3 3 Class Distribution -------------------- 100% | Mutant Dominant Class ---------------- Mutant | -10/Materials Mutant | -9/Materials Mutant | -9/Mines Resources | -11 -10 -9 -9 ----------- Run | Yrd Mat Mat Min Matter Collected 534 | 186 66 282 . Remotely . | . . . . Salvage Created 551 | . 52 461 38 Parts 36 | . 1 33 2 Haulers Intercepted . | . . . . Recyclers Shooed . | . . . . Parts Field Recycled . | . . . . Retrieved Matter . | . . . . Parts Self-Destructed . | . . . . Prevented . | . . . . Kills | -11 -10 -9 -9 ------- Run | Yrd Mat Mat Min Combat Hostiles Destroyed 23 | . 2 20 1 Melee 4 | . . 4 . Guns 16 | . 2 13 1 Classes Destroyed 4 | . 2 2 . Watcher 1 | . 1 . . Swarmer 16 | . 2 14 . Grunt 4 | . . 3 1 Sentry 3 | . . 3 . Best Kill Streak 8 | . 2 8 1 Combat Bots Only 8 | . 2 8 1 Max Kills in Single Turn 2 | . 1 2 1 Gunslinging 1 | . . 1 . Exploded . | . . . . Melee 1 | . . 1 . Uniques/NPCs Destroyed . | . . . . Combat | -11 -10 -9 -9 -------- Run | Yrd Mat Mat Min Hostile Shots Fired 289 | . 17 262 10 Missed 93 | . 7 83 3 Hits 196 | . 10 179 7 Projectile 196 | . 10 179 7 Critical Strikes 2 | . . 2 . Damage Taken 1997 | . 85 1819 93 Core 430 | . 26 379 25 Absorbed by Shields . | . . . . Core Remaining (%) 94 | 100 89 . . Volleys Fired 50 | . 11 32 7 Largest 2 | . 2 2 1 Hottest 46 | . 40 46 23 Shots Fired 81 | . 22 52 7 Gun 81 | . 22 52 7 Cannon . | . . . . Launcher . | . . . . Special . | . . . . Kinetic 81 | . 22 52 7 Thermal . | . . . . Explosive . | . . . . Electromagnetic . | . . . . Robot Hit Streak 10 | . 5 10 4 Robot Miss Streak 4 | . 3 4 2 Penetration Max . | . . . . Secondary Targets 3 | . 1 2 . Max Gunslinging Chain 1 | . 1 1 . Shots Hit Robots 69 | . 9 54 6 Core Hits 32 | . 5 23 4 Critical Kills 1 | . . . 1 Critical Parts Destroyed 1 | . . 1 . Critical Strikes 2 | . . 1 1 Destroy 1 | . . . 1 Smash 1 | . . 1 . Melee Attacks 26 | . . 26 . Impact 26 | . . 26 . Slashing . | . . . . Piercing . | . . . . Sneak Attacks . | . . . . Combat Hostiles . | . . . . Follow-up Attacks . | . . . . Damage Inflicted 1156 | . 105 980 71 Guns 683 | . 101 511 71 Cannons . | . . . . Explosions . | . . . . Melee 468 | . . 468 . Ramming 5 | . 4 1 . Kinetic 683 | . 101 511 71 Thermal . | . . . . Explosive . | . . . . Electromagnetic . | . . . . Impact 468 | . . 468 . Slashing . | . . . . Piercing . | . . . . Highest Corruption . | . . . . Average Corruption . | . . . . Corruption Purged . | . . . . Corruption Blocked . | . . . . Overload Shots . | . . . . Overflow Damage 98 | . . 98 . Projectiles . | . . . . Explosions . | . . . . Melee 98 | . . 98 . Knockbacks 1 | . . 1 . Impact 1 | . . 1 . Kinetic . | . . . . Secondary . | . . . . Self-Inflicted Damage . | . . . . Shots . | . . . . Rammed 1 | . . 1 . Targets Rammed 3 | . 1 2 . Kicked 2 | . 1 1 . Crushed . | . . . . Highest Temperature 6 | . . 6 . Average Temperature 4 | . . 4 . Received Heat Transfer 486 | . 12 420 54 Siege Activations . | . . . . Martial Activations . | . . . . Shielding Activations . | . . . . Robots Disrupted . | . . . . Combat Hostiles . | . . . . Robots Corrupted 3 | . . 3 . Combat Hostiles 3 | . . 3 . Parts Fried 4 | . . 4 . Impact Corruptions 7 | . . 7 . Robots Melted . | . . . . Combat Hostiles . | . . . . Parts Melted . | . . . . Heat Transferred . | . . . . Parts Sabotaged . | . . . . Parts Stolen . | . . . . Parts Stripped . | . . . . Power Chain Reactions . | . . . . Alert | -11 -10 -9 -9 ------- Run | Yrd Mat Mat Min Maximum Alert Level 1 | . . 1 . Low Security (%) 96 | 100 100 93 100 Level 1 3 | . . 6 . Level 2 . | . . . . Level 3 . | . . . . Level 4 . | . . . . Level 5 . | . . . . High Security . | . . . . Max Security . | . . . . Peak Influence 215 | . 60 215 54 Initial 54 | . . . 54 Average 66 | . 11 125 35 Influence Increases 697 | . 114 553 30 Destroy 0b10 Robot/C 460 | . 40 400 20 Destroy 0b10 Robot/NC 5 | . 5 . . Destroy Leader 82 | . 2 70 10 Successful Hack 15 | . 7 8 . Disable Machine 15 | . . 15 . Lose Combat Pursuer 120 | . 60 60 . Influence Decreases 663 | . 114 413 136 Entered New Map 86 | . . . 86 Time Decay 427 | . 114 273 40 Lost Part 150 | . . 140 10 Squads Dispatched 2 | . 1 1 . Investigation . | . . . . Extermination . | . . . . Reinforcement 2 | . 1 1 . Assault . | . . . . Garrison . | . . . . Intercept . | . . . . Searches Triggered . | . . . . Construction Impeded . | . . . . Haulers Reinforced . | . . . . Active Scanning Responses . | . . . . Cargo Convoy Interrupts . | . . . . Stealth | -11 -10 -9 -9 --------- Run | Yrd Mat Mat Min Distress Signals 4 | . 2 2 . Communications Jammed . | . . . . Distress Signals . | . . . . Times Spotted 48 | . 12 32 4 Peak Tracking Total 9 | . 5 9 4 Tactical Retreats 7 | . 2 5 . Traps | -11 -10 -9 -9 ------- Run | Yrd Mat Mat Min Traps Triggered . | . . . . Indirectly . | . . . . Trap Hack Attempts . | . . . . Triggered . | . . . . Disarmed . | . . . . Reprogrammed . | . . . . Reused . | . . . . Traps Extracted . | . . . . Installed . | . . . . Triggered . | . . . . Machines | -11 -10 -9 -9 ---------- Run | Yrd Mat Mat Min Machines Disabled 1 | . . 1 . Max in Single Turn 1 | . . 1 . Machines Repaired . | . . . . Machines Dismantled . | . . . . Machines Sabotaged . | . . . . Overloaded Fab Kills . | . . . . Hacking | -11 -10 -9 -9 --------- Run | Yrd Mat Mat Min Machines Accessed 7 | . 4 3 . Terminals 6 | . 3 3 . Fabricators . | . . . . Repair Stations . | . . . . Recycling Units 1 | . 1 . . Scanalyzers . | . . . . Garrison Access . | . . . . Total Hacks 14 | . 7 7 . Successful 7 | . 4 3 . Failed 7 | . 3 4 . Catastrophic 2 | . 1 1 . Database Lockouts . | . . . . Manual 7 | . 3 4 . Terminals 13 | . 6 7 . Fabricators . | . . . . Repair Stations . | . . . . Recycling Units 1 | . 1 . . Scanalyzers . | . . . . Garrison Access . | . . . . Terminal Hacks 5 | . 2 3 . Record 2 | . 1 1 . Branch Access Points 1 | . . 1 . Registered Components 2 | . 1 1 . Fabricator Hacks . | . . . . Repair Station Hacks . | . . . . Recycling Unit Hacks 1 | . 1 . . Retrieve Components 1 | . 1 . . Scanalyzer . | . . . . Garrison Access Hacks . | . . . . Unauthorized Hacks 1 | . 1 . . Terminals 1 | . 1 . . Botnet 1 | . 1 . . Fabricators . | . . . . Repair Stations . | . . . . Recycling Units . | . . . . Scanalyzers . | . . . . Garrison Access . | . . . . Data Cores Recovered . | . . . . Used . | . . . . Hacking Detections 6 | . 3 3 . Full Trace Events . | . . . . Feedback Events . | . . . . Feedback Blocked . | . . . . Robot Schematics Acquired . | . . . . Robots Built . | . . . . Authchips . | . . . . Time . | . . . . Total Robot Build Rating . | . . . . Part Schematics Acquired . | . . . . Parts Built . | . . . . Authchips . | . . . . Time . | . . . . Total Part Build Rating . | . . . . Parts Repaired . | . . . . Time . | . . . . Parts Recycled . | . . . . Recycled Matter . | . . . . Retrieved Matter . | . . . . Retrieved Components 2 | . 2 . . Parts Scanalyzed . | . . . . Part Schematics Acquired . | . . . . Parts Damaged . | . . . . Bothacking | -11 -10 -9 -9 ------------ Run | Yrd Mat Mat Min Used RIF Installer . | . . . . Robots Hacked . | . . . . Non-combat . | . . . . Combat . | . . . . Robot Hacks Applied . | . . . . Relay Couplers Released . | . . . . Fabnet Peak Effective % . | . . . . Robots Rewired . | . . . . Allies Hacked . | . . . . Hacks Repelled . | . . . . Allies | -11 -10 -9 -9 -------- Run | Yrd Mat Mat Min Total Allies . | . . . . Largest Group . | . . . . Highest-Rated Group . | . . . . Highest-Rated Ally . | . . . . Total Orders . | . . . . Ally Attacks . | . . . . Total Damage . | . . . . Kills . | . . . . Allies Corrupted . | . . . . Allies Melted . | . . . . Intel | -11 -10 -9 -9 ------- Run | Yrd Mat Mat Min Active Infowar (turns) 666 | . 307 359 . Sensors 483 | . 306 177 . ECM 235 | . 1 234 . Robot Analysis Total . | . . . . Derelict Logs Recovered 1 | . . . 1 Drone Launches . | . . . . Drone Recoveries . | . . . . Exploration | -11 -10 -9 -9 ------------- Run | Yrd Mat Mat Min Turns Passed 1288 | 51 541 608 88 Spaces Moved 569 | 39 283 211 36 Core 31 | 7 . 22 2 Treads 69 | . . 69 . Legs 457 | 32 283 108 34 Wheels . | . . . . Hover . | . . . . Flight 12 | . . 12 . Fastest Speed 50 | 50 120 120 190 Average Speed 146 | 107 120 180 193 Slowest Speed 360 | 120 120 360 250 Overloaded Moves . | . . . . Propulsion Burnouts . | . . . . Robots Hopped . | . . . . Potential Cave-ins . | . . . . Cave-ins Triggered . | . . . . Exploration Rate (%) 22 | 4 47 26 11 Regions Visited 3 Branch Regions 1 Pre-discovered Areas . | . . . . Known Exits Taken 1 | . . 1 . Unknown Exits Taken 2 | 1 1 . . Scrap Searched . | . . . . Spaces Dug . | . . . . Terrain Destroyed . | . . . . Melee . | . . . . Projectile . | . . . . AOE . | . . . . Terrain Rammed . | . . . . Walls Destroyed . | . . . . Machines Disabled . | . . . . Actions | -11 -10 -9 -9 --------- Run | Yrd Mat Mat Min Total 908 | 48 465 346 49 Wait 213 | . 162 47 4 Move 566 | 38 282 210 36 Hop . | . . . . Pick Up 21 | 5 5 11 . Fast Attach . | . . . . Attach 21 | 5 3 12 1 Detach 3 | . 1 1 1 Swap 5 | . . 5 . Drop . | . . . . Fire 50 | . 11 32 7 Melee 26 | . . 26 . Ram 1 | . . 1 . Kick 2 | . 1 1 . Crush . | . . . . Escape Stasis . | . . . . Rewire . | . . . . Trap . | . . . . Miscellaneous . | . . . . Route ------- -11/Scrapyard -10/Materials -9/Materials (discovered 2 exits: *Min / *Sto) -9/Mines (discovered 1 exit: Mat) History --------- Turn | Location | Event 5 | -11/Scrapyard | Discovered new exit (range 15) 52 | -11/Scrapyard | Entered Materials 243 | -10/Materials | Discovered new exit (range 16) 308 | -10/Materials | Build established: Mutant 593 | -10/Materials | Entered another Materials area 593 | -9/Materials | Evolved 2 slots: Utility x2 632 | -9/Materials | Discovered new exit (range 15) 736 | -9/Materials | Destroyed 8 combat bots 805 | -9/Materials | Lost 4 parts (1n1u2w) 887 | -9/Materials | Identified exit to Storage 953 | -9/Materials | Core integrity fell below 50% 1003 | -9/Materials | Lost 3 parts (1p1n1w) 1114 | -9/Materials | Identified exit to Mines 1126 | -9/Materials | Core integrity fell below 20% 1201 | -9/Materials | Entered Mines 1222 | -9/Mines | Identified exit to Materials 1289 | -9/Mines | Destroyed by G-34 Mercenary with Small Laser Last Messages --------------- them an interesting study in robotic evolution. I did unfortunately have to displace some of my favorite Derelict populations during the construction of [Complex 0b10]. 01122_ T-07 Excavator is excavating. 01132_ K-01 Serf cleans the Matter Filter. 01150_ Matter Filter disabled. 01173_ Shotgun destroyed. 01175_ Y-45 Defender destroyed. 01180_ U-05 Engineer lays Concrete. 01198_ Flail destroyed. LOCATION=MINES GOAL=ESCAPE 01222_ Acquired derelict log, extracted data. Loading 1 Mines exit... 01266_ Aluminum Leg destroyed. 01285_ G-47 Trooper suffers critical hit (Destroy). 01285_ G-47 Trooper destroyed. Map ----- +----------------------------------------------------+ | | | | | | | | | | | | | | | | | | | | | | | | | | | | | | | | | | | | | | | | | | | | | ????????????????????????????????????????????????? | | ????????????????????????##################??????? | | ????????????????????????#!g* #??? | | ????????????????????????#@####### #?? | | ????????????????????????# #?????# ##### #? | | ????????????????????????# #?????# #???????? #? | | ???????????????????????##g###???# #????????????? | | ??????????????????????## ##??# #????????????? | | ??????????????????????# #??# #????????????? | | ??????????????????????# #??# #????????????? | | ????????????????????# ## ##??# #????????????? | | ?????????????????? ?#r ##??# #????????????? | | ???????????????? ??# ### #????????????? | | ?????????????? ? ?## #????????????? | | ????????????? ?? ??# #????????????? | | ??????????????? ##????????????? | | ?????????????? ## ##?????????????? | | ????????????????## ## ### # #??????????????? | | ?????????????????#???# ??# ## #??????????????? | | ?????????????????????#???# ## #??????????????? | | ?????????????????????????# ### #??????????????? | | ?????????????????????????# #?####??????????????? | | ?????????????????????????# ????????????????????? | | ?????????????????????????# ????????????????????? | | ????????????????????????? ????????????????????? | | ????????????????????????? ????????????????????? | | ????????????????????????? ????????????????????? | | ?????????????????????????? ?????????????????????? | +----------------------------------------------------+ Best States ------------- Heat Dissipation 28 Energy Generation 12 Energy Capacity 265 Matter Stores 300 Matter Capacity 300 Sight Range 16 Robot Scan Range 14 Terrain Scan Density 10 ECM Strength 1 Evasion (%) 55 Recoil Reduction 2 Item Schematics ----------------- None Robot Schematics ------------------ None Fabricated ------------ Nothing Repaired ---------- Nothing Alien Tech Used ----------------- None Achievements -------------- None Challenges ------------ None Game ------ Seed SupersonicGrapheneMegatreads Manual? 0 Play Time 00:18:18 Cumulative 39.1 hours Start 2025.05.07 @ 09:19:39 End 2025.05.07 @ 09:37:52 Sessions 1 Manual Loads 0 Difficulty Rogue Special Mode None Game No. 52 Rogue 52 Adventurer 0 Explorer 0 Win Type - Total 0 Types 0/0/0/0/0/0/0/0/0/0 Lore% 8 Gallery% 30 Achievement% 28 Wizard Run 0 Options --------- Layout 1 ASCII 0 Keyboard 0 Movement Numpad Keybinds 0 Fullscreen 1 Font 32/SmallcapsGlow Map View 50x35 Zoom Use 0% Tactical HUD 1 Map Filters NONE Filters NONE Steam 1 RUN: f32896d6-bb30-432e-b2cb-4874bf519bf7